Cogmind - Beta 12 @@@ ROGUE MODE // 2023.11.23 @ 15:24:07 Player: Mozco Result: Destroyed by Y-54 Guardian with Gatling Laser Performance ------------- Evolutions (4) 2000 Regions Visited (10) 2000 Robots Destroyed (95) 475 Value Destroyed (2007) 2007 Prototype IDs (18) 360 Alien Tech Used (0) 0 Bonus (75) 75 TOTAL SCORE: 6917 Bonus ------- High Alert Combat Kills 75 Cogmind --------- Core Integrity 0/850 Matter 300/300 Energy 100/100 System Corruption 0% Temperature Cool (12) Movement Core (50) Location -6/Extension Parts ------- > --- POWER (1) -------- (None) > --- PROPULSION (4) --- (None) > --- UTILITY (8) ------ Enhanced Optical Array Advanced Signal Interpreter System Guard > --- WEAPON (2) ------- (None) > --- INVENTORY (5) ---- Micro Nuclear Core Fusion Compressor Improved Flight Unit Triangulator System Guard Peak State ------------ > --- POWER ------------ Light Angular Momentum Engine > --- PROPULSION ------- Nuclear Pulse Thruster Nuclear Pulse Thruster Nuclear Pulse Thruster Nuclear Pulse Thruster > --- UTILITY ---------- Small Storage Unit Advanced Weight Redist. System Enhanced Optical Array Improved Sensor Array Advanced Signal Interpreter Hacking Suite System Shield System Guard > --- WEAPON ----------- Improved Proton Missile Launcher Heavy Mace > --- INVENTORY -------- Cooled Ion Engine Micro Nuclear Core Fusion Compressor Improved Flight Unit Improved Flight Unit Triangulator Advanced ECM Suite Axe [Rating: 64] Favorites ----------- Power Ion Engine Engine Ion Engine Power Core Fusion Compressor Propulsion Improved Flight Unit Leg Improved Aluminum Leg Wheel Wheel Flight Unit Improved Flight Unit Utility Hacking Suite Device Weight Redist. System Storage Small Storage Unit Processor Enhanced Optical Array Hackware Hacking Suite Protection Light Armor Plating Weapon Light Assault Rifle Energy Gun EM Pulse Gun Ballistic Gun Light Assault Rifle Launcher Improved Proton Missile Launcher Impact Weapon Heavy Mace Slashing Weapon Axe Build | -11 -10 -10 -9 -9 -9 -8 -8 -7 -6 -6 ------- Run | Jun Mat Min Mat Min Exi Min Mat Fac Fac Ext Slots Evolved 8 | . . . 2 . . . 2 2 2 . Power . | . . . . . . . . . . . Propulsion 2 | . . . . . . . 1 1 . . Utility 6 | . . . 2 . . . 1 1 2 . Weapon . | . . . . . . . . . . . Parts Attached 104 | 8 10 2 26 . . . 12 6 40 . Power 13 | 2 1 1 3 . . . . 1 5 . Engine 11 | 2 1 1 3 . . . . 1 3 . Core 2 | . . . . . . . . . 2 . Reactor . | . . . . . . . . . . . Propulsion 22 | 2 4 . 3 . . . 3 1 9 . Treads . | . . . . . . . . . . . Leg 4 | . 4 . . . . . . . . . Wheel 2 | 2 . . . . . . . . . . Hover . | . . . . . . . . . . . Flight 16 | . . . 3 . . . 3 1 9 . Utility 38 | 2 3 . 9 . . . 3 2 19 . Device 18 | 1 . . 3 . . . . 1 13 . Storage 3 | 1 1 . 1 . . . . . . . Processor 7 | . 1 . 1 . . . 1 . 4 . Hackware 5 | . . . 1 . . . 1 1 2 . Protection 5 | . 1 . 3 . . . 1 . . . Artifact . | . . . . . . . . . . . Weapon 31 | 2 2 1 11 . . . 6 2 7 . Energy Gun 6 | 1 1 . 3 . . . 1 . . . Energy Cannon . | . . . . . . . . . . . Ballistic Gun 11 | 1 1 1 7 . . . . 1 . . Ballistic Cannon . | . . . . . . . . . . . Launcher 7 | . . . 1 . . . 2 . 4 . Special Weapon . | . . . . . . . . . . . Impact Weapon 3 | . . . . . . . 1 1 1 . Slashing Weapon 4 | . . . . . . . 2 . 2 . Piercing Weapon . | . . . . . . . . . . . Special Melee Weapon . | . . . . . . . . . . . Unidentified Prototypes 3 | . . . 2 . . . . 1 . . Parts Lost 26 | . 4 1 2 . . . . . 18 1 Power 4 | . 1 . 1 . . . . . 2 . Propulsion 9 | . 1 . . . . . . . 8 . Utility 6 | . . . . . . . . . 5 1 Weapon 7 | . 2 1 1 . . . . . 3 . Highest Loss Streak 8 | . 3 1 1 . . . . . 8 1 To Critical Strikes . | . . . . . . . . . . . Average Slot Usage (%) 95 | . 98 100 97 88 88 88 96 96 92 26 Engine 8 | . 13 14 10 11 11 11 9 7 4 . Leg 6 | . 26 28 4 . . . . . . . Flight 17 | . . . 17 22 22 22 27 28 22 . Device 8 | . 3 . 8 11 11 11 9 7 12 . Storage 9 | . 14 14 10 11 11 11 9 7 5 . Processor 9 | . 8 . 8 11 11 11 9 7 12 20 Hackware 12 | . . . 10 11 11 11 11 21 19 6 Protection 2 | . 1 14 4 . . . 4 . . . Energy Gun 6 | . 12 14 8 11 11 11 13 . . . Ballistic Gun 6 | . 14 14 11 . . . . 4 . . Impact Weapon 2 | . . . . . . . . 2 5 . Slashing Weapon 1 | . . . . . . . 2 7 2 . Naked Turns . | . . . . . . . . . . . Heaviest Build 28 | 15 20 20 23 16 16 16 22 21 28 . Greatest Support 33 | 26 26 26 26 16 16 16 21 29 33 3 Greatest Overweight (x) 7 | . 1 . 1 . . . 1 . 7 . Average Overweight (x) . | . . . . . . . . . . . Largest Inventory Capacity 10 | 8 10 10 10 8 8 8 8 8 8 5 Average Capacity 8 | 7 9 10 8 8 8 8 8 8 7 5 Most Carried 10 | 8 10 10 10 8 8 8 8 8 8 5 Average Carried 7 | 7 8 9 8 8 8 8 7 7 7 5 Final Capacity 10 | 8 10 10 8 8 8 8 8 8 5 5 Final Carried 10 | 8 10 10 8 8 8 8 8 8 5 5 Class Distribution -------------------- 46% | Mutant 20% | Hacker-Sprinter 17% | Scavenger-Mutant 9% | Hacker-Mutant 5% | Hacker-Scout Dominant Class ---------------- Mutant | -10/Materials Mutant | -10/Mines Scavenger-Mutant | -9/Materials Mutant | -9/Mines Mutant | -9/Exiles Mutant | -8/Mines Mutant | -8/Materials Hacker-Sprinter | -7/Factory Hacker-Sprinter | -6/Factory Mutant | -6/Extension Resources | -11 -10 -10 -9 -9 -9 -8 -8 -7 -6 -6 ----------- Run | Jun Mat Min Mat Min Exi Min Mat Fac Fac Ext Matter Collected 1830 | 304 211 50 546 10 . . 121 57 531 . Remotely . | . . . . . . . . . . . Salvage Created 3216 | 162 581 90 1186 . . . 348 116 733 . Parts 187 | 11 47 7 64 . . . 19 5 34 . Haulers Intercepted 5 | . 1 . 4 . . . . . . . Recyclers Shooed 5 | . 3 . 1 . . . . . 1 . Parts Field Recycled . | . . . . . . . . . . . Retrieved Matter . | . . . . . . . . . . . Parts Self-Destructed . | . . . . . . . . . . . Prevented . | . . . . . . . . . . . Kills | -11 -10 -10 -9 -9 -9 -8 -8 -7 -6 -6 ------- Run | Jun Mat Min Mat Min Exi Min Mat Fac Fac Ext Combat Hostiles Destroyed 55 | . 11 6 21 . . . 6 . 11 . Melee 4 | . . . . . . . 1 . 3 . Guns 38 | . 11 6 19 . . . 2 . . . AOE 13 | . . . 2 . . . 3 . 8 . Classes Destroyed 11 | 2 6 . 2 . . . . . 1 . Worker 3 | . . . 1 . . . . . 2 . Builder 1 | . 1 . . . . . . . . . Tunneler 3 | 3 . . . . . . . . . . Hauler 5 | . 1 . 4 . . . . . . . Recycler 9 | 1 2 . 1 . . . 2 . 3 . Operator 8 | . 2 . 3 . . . . 2 1 . Watcher 11 | . 2 . 3 . . . . 3 3 . Swarmer 31 | . 6 6 6 . . . 3 . 10 . Grunt 12 | . 5 . 7 . . . . . . . Sentry 11 | . . . 8 . . . 3 . . . Programmer 1 | . . . . . . . . . 1 . Best Kill Streak 6 | 3 4 3 4 . . . 6 2 5 . Combat Bots Only 5 | . 3 3 3 . . . 4 . 5 . Max Kills in Single Turn 4 | 1 2 1 2 . . . 3 1 4 . Gunslinging . | . . . . . . . . . . . Exploded 3 | . . . 2 . . . 3 . 2 . Melee 1 | . . . . . . . 1 . 1 . Uniques/NPCs Destroyed . | . . . . . . . . . . . Combat | -11 -10 -10 -9 -9 -9 -8 -8 -7 -6 -6 -------- Run | Jun Mat Min Mat Min Exi Min Mat Fac Fac Ext Damage Taken 3791 | . 572 229 764 . . . 110 93 1985 38 Core 1252 | . 99 49 216 . . . 15 16 828 29 Absorbed by Shields 17 | . . . . . . . . . . 17 Core Remaining (%) 76 | 100 . 40 . . . 46 97 97 . . Volleys Fired 236 | 8 56 22 134 . . . 7 5 4 . Largest 2 | 2 2 2 2 . . . 2 1 1 . Hottest 90 | 60 85 85 90 . . . 85 25 43 . Shots Fired 426 | 16 97 36 257 . . . 11 5 4 . Gun 416 | 16 97 36 252 . . . 10 5 . . Cannon . | . . . . . . . . . . . Launcher 10 | . . . 5 . . . 1 . 4 . Special . | . . . . . . . . . . . Kinetic 291 | 8 65 22 191 . . . . 5 . . Thermal 51 | . 14 14 23 . . . . . . . Explosive 8 | . . . 5 . . . 1 . 2 . Electromagnetic 76 | 8 18 . 38 . . . 10 . 2 . Robot Hit Streak 16 | 2 10 4 16 . . . 13 2 4 . Robot Miss Streak 6 | 3 6 4 5 . . . 5 1 1 . Penetration Max . | . . . . . . . . . . . Secondary Targets 6 | . 3 . 3 . . . . . . . Max Gunslinging Chain 1 | . 1 . 1 . . . . . . . Shots Hit Robots 277 | 7 56 18 151 . . . 15 12 18 . Core Hits 135 | 4 25 8 69 . . . 10 3 16 . Critical Kills 2 | . 2 . . . . . . . . . Critical Parts Destroyed 3 | . . . . . . . . 1 2 . Critical Strikes 8 | . 2 1 1 . . . 1 1 2 . Burn 2 | . . 1 1 . . . . . . . Destroy 2 | . 2 . . . . . . . . . Smash 3 | . . . . . . . . 1 2 . Sever 1 | . . . . . . . 1 . . . Melee Attacks 50 | . . . . . . . 6 13 31 . Impact 19 | . . . . . . . 1 3 15 . Slashing 31 | . . . . . . . 5 10 16 . Piercing . | . . . . . . . . . . . Sneak Attacks 4 | . . . . . . . 2 . 2 . Combat Hostiles . | . . . . . . . . . . . Follow-up Attacks 3 | . . . . . . . . 1 2 . Damage Inflicted 5502 | 169 742 190 1961 . . . 536 439 1465 . Guns 2856 | 121 742 190 1616 . . . 119 68 . . Cannons . | . . . . . . . . . . . Explosions 1399 | 48 . . 345 . . . 168 . 838 . Melee 1247 | . . . . . . . 249 371 627 . Ramming . | . . . . . . . . . . . Kinetic 1603 | 66 398 95 976 . . . . 68 . . Thermal 846 | 48 158 95 231 . . . . . 314 . Explosive 843 | . . . 345 . . . 168 . 330 . Electromagnetic 963 | 55 186 . 409 . . . 119 . 194 . Impact 402 | . . . . . . . . 80 322 . Slashing 845 | . . . . . . . 249 291 305 . Piercing . | . . . . . . . . . . . Highest Corruption 2 | . . . 1 1 1 1 . . 2 . Average Corruption 1 | . . . 1 1 1 1 . . 2 . Corruption Purged . | . . . . . . . . . . . Corruption Blocked . | . . . . . . . . . . . Effects 6 | . . . 1 1 . . . . 4 . Matter Fused 3 | . . . 1 . . . . . 2 . Energy Discharges 3 | . . . . 1 . . . . 2 . Overload Shots . | . . . . . . . . . . . Overflow Damage 508 | 26 . . 9 . . . 91 98 284 . Projectiles . | . . . . . . . . . . . Explosions 198 | 26 . . 9 . . . 40 . 123 . Melee 310 | . . . . . . . 51 98 161 . Knockbacks 3 | . . . . . . . . . 3 . Impact 3 | . . . . . . . . . 3 . Kinetic . | . . . . . . . . . . . Secondary . | . . . . . . . . . . . Self-Inflicted Damage 7 | . . . . . . . . . 7 . Shots 1 | . . . . . . . . . 1 . Rammed . | . . . . . . . . . . . Targets Rammed . | . . . . . . . . . . . Kicked . | . . . . . . . . . . . Crushed . | . . . . . . . . . . . Highest Temperature 273 | . 184 237 273 . . . 42 7 13 . Average Temperature 59 | . 46 103 57 . . . 20 5 6 . Received Heat Transfer 1017 | . 186 . 270 . . . 45 39 465 12 Effects 1 | . . 1 . . . . . . . . Energy Bleed 1 | . . 1 . . . . . . . . Siege Activations . | . . . . . . . . . . . Robots Corrupted . | . . . . . . . . . . . Combat Hostiles . | . . . . . . . . . . . Parts Fried 12 | . . . 4 . . . . 3 5 . Impact Corruptions 10 | . . . . . . . . 3 7 . Robots Melted . | . . . . . . . . . . . Combat Hostiles . | . . . . . . . . . . . Parts Melted 2 | . . 2 . . . . . . . . Heat Transferred 1632 | 50 370 296 666 . . . . . 250 . Parts Sabotaged . | . . . . . . . . . . . Parts Stolen . | . . . . . . . . . . . Parts Stripped . | . . . . . . . . . . . Power Chain Reactions 2 | 1 . . . . . . . . 1 . Missiles Intercepted . | . . . . . . . . . . . Alert | -11 -10 -10 -9 -9 -9 -8 -8 -7 -6 -6 ------- Run | Jun Mat Min Mat Min Exi Min Mat Fac Fac Ext Peak Influence 659 | 20 322 233 572 222 . . 279 191 659 337 Initial 322 | . . 58 90 222 . . . 80 75 322 Average 200 | 10 177 160 307 222 . . 118 122 271 329 Maximum Alert Level 2 | . 1 1 2 1 . . 1 . 2 1 Low Security (%) 51 | 100 63 65 29 . . 100 95 100 18 . Level 1 37 | . 36 34 28 100 . . 4 . 74 100 Level 2 11 | . . . 41 . . . . . 7 . Level 3 . | . . . . . . . . . . . Level 4 . | . . . . . . . . . . . Level 5 . | . . . . . . . . . . . High Security . | . . . . . . . . . . . Max Security . | . . . . . . . . . . . Squads Dispatched 22 | . 3 . 6 . . . 1 5 7 . Investigation 9 | . 1 . 1 . . . . 3 4 . Extermination 2 | . . . . . . . . . 2 . Reinforcement 11 | . 2 . 5 . . . 1 2 1 . Assault . | . . . . . . . . . . . Garrison . | . . . . . . . . . . . Intercept . | . . . . . . . . . . . Searches Triggered 1 | . . . . . . . . . 1 . Construction Impeded 1 | . . . 1 . . . . . . . Haulers Reinforced . | . . . . . . . . . . . Active Scanning Responses . | . . . . . . . . . . . Cargo Convoy Interrupts . | . . . . . . . . . . . Stealth | -11 -10 -10 -9 -9 -9 -8 -8 -7 -6 -6 --------- Run | Jun Mat Min Mat Min Exi Min Mat Fac Fac Ext Distress Signals 9 | . 2 . 2 . . . 1 1 2 1 Communications Jammed . | . . . . . . . . . . . Distress Signals . | . . . . . . . . . . . Times Spotted 192 | . 25 7 56 . . . 9 14 78 3 Peak Tracking Total 15 | . 6 3 7 . . . 5 3 15 4 Tactical Retreats 31 | . . 1 3 . . . . 3 24 . Traps | -11 -10 -10 -9 -9 -9 -8 -8 -7 -6 -6 ------- Run | Jun Mat Min Mat Min Exi Min Mat Fac Fac Ext Traps Triggered 9 | . 1 . 2 . . . . . 5 1 Indirectly . | . . . . . . . . . . . Trap Hack Attempts . | . . . . . . . . . . . Triggered . | . . . . . . . . . . . Disarmed . | . . . . . . . . . . . Reprogrammed . | . . . . . . . . . . . Reused . | . . . . . . . . . . . Traps Extracted . | . . . . . . . . . . . Installed . | . . . . . . . . . . . Triggered . | . . . . . . . . . . . Machines | -11 -10 -10 -9 -9 -9 -8 -8 -7 -6 -6 ---------- Run | Jun Mat Min Mat Min Exi Min Mat Fac Fac Ext Machines Disabled 8 | . 2 . . . . . . . 6 . Max in Single Turn 5 | . 1 . . . . . . . 5 . Garrison Access 3 | . . . . . . . . 2 1 . Machines Repaired . | . . . . . . . . . . . Machines Sabotaged . | . . . . . . . . . . . Overloaded Fab Kills . | . . . . . . . . . . . Hacking | -11 -10 -10 -9 -9 -9 -8 -8 -7 -6 -6 --------- Run | Jun Mat Min Mat Min Exi Min Mat Fac Fac Ext Machines Accessed 48 | . 4 . 8 . . . 9 13 14 . Terminals 36 | . 3 . 7 . . . 9 9 8 . Fabricators 3 | . . . . . . . . 1 2 . Repair Stations . | . . . . . . . . . . . Recycling Units 4 | . 1 . . . . . . . 3 . Scanalyzers 2 | . . . 1 . . . . 1 . . Garrison Access 3 | . . . . . . . . 2 1 . Total Hacks 201 | . 11 . 35 . . . 43 49 63 . Successful 101 | . 5 . 24 . . . 17 15 40 . Failed 98 | . 6 . 10 . . . 26 34 22 . Catastrophic 8 | . . . . . . . 2 3 3 . Database Lockouts 2 | . . . 1 . . . . . 1 . Manual 101 | . 5 . 18 . . . 31 24 23 . Terminals 171 | . 9 . 33 . . . 43 42 44 . Fabricators 8 | . . . . . . . . 3 5 . Repair Stations . | . . . . . . . . . . . Recycling Units 14 | . 2 . . . . . . . 12 . Scanalyzers 3 | . . . 2 . . . . 1 . . Garrison Access 5 | . . . . . . . . 3 2 . Terminal Hacks 58 | . 3 . 16 . . . 13 8 18 . Part Schematic 6 | . . . . . . . 2 1 3 . Robot Analysis 4 | . . . 3 . . . . . 1 . Prototype ID Bank 6 | . 1 . 1 . . . 2 1 1 . Branch Access Points 3 | . . . 1 . . . 1 . 1 . Emergency Access Points 6 | . . . 1 . . . 2 1 2 . Terminal Index 1 | . . . . . . . . . 1 . Fabricator Index 2 | . . . . . . . 1 . 1 . Alert Level 6 | . 1 . 1 . . . 2 1 1 . Unreport Threat 4 | . . . 2 . . . 1 1 . . Locate Traps 1 | . . . . . . . . . 1 . Dispatch Records 1 | . . . . . . . . . 1 . Recall Investigation 2 | . . . 1 . . . . . 1 . Recall Reinforcements 2 | . . . 1 . . . . . 1 . Hauler Manifests 2 | . . . 1 . . . . 1 . . Zone Layout 12 | . 1 . 4 . . . 2 2 3 . Fabricator Hacks 7 | . . . . . . . . 2 5 . Network Status 1 | . . . . . . . . . 1 . Load Schematic 3 | . . . . . . . . 1 2 . Build 3 | . . . . . . . . 1 2 . Repair Station Hacks . | . . . . . . . . . . . Recycling Unit Hacks 8 | . . . . . . . . . 8 . Process 1 | . . . . . . . . . 1 . Report Inventory 3 | . . . . . . . . . 3 . Retrieve Matter 2 | . . . . . . . . . 2 . Retrieve Components 2 | . . . . . . . . . 2 . Scanalyzer 2 | . . . 2 . . . . . . . Insert Component 1 | . . . 1 . . . . . . . Analyze 1 | . . . 1 . . . . . . . Garrison Access Hacks 3 | . . . . . . . . 2 1 . Seal Access 3 | . . . . . . . . 2 1 . Unauthorized Hacks 23 | . 2 . 6 . . . 4 3 8 . Terminals 22 | . 2 . 6 . . . 4 3 7 . Assimilate 5 | . . . 2 . . . . . 3 . Botnet 17 | . 2 . 4 . . . 4 3 4 . Fabricators . | . . . . . . . . . . . Repair Stations . | . . . . . . . . . . . Recycling Units 1 | . . . . . . . . . 1 . Monitor 1 | . . . . . . . . . 1 . Scanalyzers . | . . . . . . . . . . . Garrison Access . | . . . . . . . . . . . Data Cores Recovered 2 | . 1 . . . . . . . 1 . Used . | . . . . . . . . . . . Hacking Detections 43 | . 4 . 8 . . . 9 11 11 . Full Trace Events 8 | . . . 1 . . . . 3 4 . Feedback Events . | . . . . . . . . . . . Feedback Blocked . | . . . . . . . . . . . Robot Schematics Acquired . | . . . . . . . . . . . Robots Built . | . . . . . . . . . . . Authchips . | . . . . . . . . . . . Time . | . . . . . . . . . . . Total Robot Build Rating . | . . . . . . . . . . . Part Schematics Acquired 7 | . . . 1 . . . 2 1 3 . Parts Built 6 | . . . . . . . . 2 4 . Authchips . | . . . . . . . . . . . Time 263 | . . . . . . . . 73 190 . Total Part Build Rating 26 | . . . . . . . . 6 20 . Parts Repaired . | . . . . . . . . . . . Time . | . . . . . . . . . . . Parts Recycled . | . . . . . . . . . . . Recycled Matter 40 | . . . . . . . . . 40 . Retrieved Matter 40 | . . . . . . . . . 40 . Retrieved Components 9 | . . . . . . . . . 9 . Parts Scanalyzed 1 | . . . 1 . . . . . . . Part Schematics Acquired 1 | . . . 1 . . . . . . . Parts Damaged . | . . . . . . . . . . . Bothacking | -11 -10 -10 -9 -9 -9 -8 -8 -7 -6 -6 ------------ Run | Jun Mat Min Mat Min Exi Min Mat Fac Fac Ext Used RIF Installer . | . . . . . . . . . . . Robots Hacked . | . . . . . . . . . . . Non-combat . | . . . . . . . . . . . Combat . | . . . . . . . . . . . Robot Hacks Applied . | . . . . . . . . . . . Relay Couplers Released . | . . . . . . . . . . . Fabnet Peak Effective % . | . . . . . . . . . . . Robots Rewired . | . . . . . . . . . . . Allies Hacked . | . . . . . . . . . . . Hacks Repelled . | . . . . . . . . . . . Allies | -11 -10 -10 -9 -9 -9 -8 -8 -7 -6 -6 -------- Run | Jun Mat Min Mat Min Exi Min Mat Fac Fac Ext Total Allies 15 | . . . . 2 . . . . 13 . Largest Group 4 | . . . . 2 2 . . . 4 . Highest-Rated Group 90 | . . . . 43 43 . . . 90 . Highest-Rated Ally 31 | . . . . 31 31 . . . 31 . Total Orders . | . . . . . . . . . . . Ally Attacks . | . . . . . . . . . . . Total Damage . | . . . . . . . . . . . Kills . | . . . . . . . . . . . Allies Corrupted . | . . . . . . . . . . . Allies Melted . | . . . . . . . . . . . Intel | -11 -10 -10 -9 -9 -9 -8 -8 -7 -6 -6 ------- Run | Jun Mat Min Mat Min Exi Min Mat Fac Fac Ext Robot Analysis Total 4 | . . . 3 . . . . . 1 . Derelict Logs Recovered 1 | . . . . 1 . . . . . . Drone Launches . | . . . . . . . . . . . Drone Recoveries . | . . . . . . . . . . . Exploration | -11 -10 -10 -9 -9 -9 -8 -8 -7 -6 -6 ------------- Run | Jun Mat Min Mat Min Exi Min Mat Fac Fac Ext Turns Passed 4816 | 680 634 244 1011 101 82 17 264 389 1361 33 Spaces Moved 5917 | 58 365 154 1210 153 220 30 488 1016 2171 52 Core 168 | 2 . . . . . . . . 114 52 Treads . | . . . . . . . . . . . Legs 629 | . 348 154 127 . . . . . . . Wheels 73 | 56 17 . . . . . . . . . Hover . | . . . . . . . . . . . Flight 5047 | . . . 1083 153 220 30 488 1016 2057 . Fastest Speed 25 | 50 90 120 37 37 37 37 32 29 25 50 Average Speed 46 | 88 118 120 47 37 37 37 35 29 38 50 Slowest Speed 400 | 90 190 120 120 37 37 37 104 32 400 50 Overloaded Moves 23 | . . . . . . . . . 23 . Propulsion Burnouts . | . . . . . . . . . . . Robots Hopped 34 | . . . 9 . . 2 5 5 13 . Cave-ins Triggered . | . . . . . . . . . . . Exploration Rate (%) 36 | 5 54 33 90 22 53 6 38 32 51 17 Regions Visited 10 Branch Regions 5 Pre-discovered Areas . | . . . . . . . . . . . Known Exits Taken 2 | . . . 1 . . . . . 1 . Unknown Exits Taken 8 | 1 1 1 . 1 1 1 1 1 . . Scrap Searched 2 | . . 1 . 1 . . . . . . Spaces Dug 14 | . . . 9 . . . 1 . 4 . Terrain Destroyed 96 | 6 . . 24 . . . 12 . 54 . Melee 5 | . . . . . . . 1 . 4 . Projectile . | . . . . . . . . . . . AOE 91 | 6 . . 24 . . . 11 . 50 . Terrain Rammed . | . . . . . . . . . . . Walls Destroyed . | . . . . . . . . . . . Machines Disabled . | . . . . . . . . . . . Actions | -11 -10 -10 -9 -9 -9 -8 -8 -7 -6 -6 --------- Run | Jun Mat Min Mat Min Exi Min Mat Fac Fac Ext Total 7496 | 666 476 183 1417 196 219 33 546 1075 2626 59 Wait 1092 | 586 22 . 27 44 . 6 30 31 346 . Move 5843 | 57 364 153 1192 152 219 25 478 1007 2144 52 Hop 30 | . . . 8 . . 2 4 3 13 . Pick Up 51 | 7 12 3 10 . . . 4 5 10 . Fast Attach 43 | 7 5 . 12 . . . 4 3 12 . Attach 20 | . 2 1 2 . . . 1 2 12 . Detach 7 | . . . 1 . . . . . 6 . Swap 41 | 1 3 1 12 . . . 7 1 16 . Drop 60 | . 12 3 19 . . . 5 6 15 . Fire 236 | 8 56 22 134 . . . 7 5 4 . Melee 44 | . . . . . . . 6 12 26 . Ram . | . . . . . . . . . . . Kick . | . . . . . . . . . . . Crush . | . . . . . . . . . . . Escape Stasis 29 | . . . . . . . . . 22 7 Rewire . | . . . . . . . . . . . Trap . | . . . . . . . . . . . Miscellaneous . | . . . . . . . . . . . Route ------- -11/Junkyard -10/Materials (discovered 2 exits: *Mat / [*Min]) -10/Mines -9/Materials (discovered 4 exits: *Mat x3 / *Min) -9/Mines -9/Exiles (discovered 2 exits: [*Min x2]) -8/Mines -8/Materials -7/Factory (discovered 2 exits: *Fac / [*Low]) -6/Factory (discovered 5 exits: [*Fac] / *Low x2 / *Ext x2) -6/Extension History --------- Turn | Location | Event 19 | -11/Junkyard | Discovered new exit (range 16) 681 | -11/Junkyard | Entered Materials 682 | -10/Materials | Build established: Mutant 932 | -10/Materials | Lost 3 parts (1p1n1w) 936 | -10/Materials | Discovered new exit (range 5) 1015 | -10/Materials | Discovered new exit (range 10) 1315 | -10/Materials | Entered Mines 1322 | -10/Mines | Received a Rocket Launcher from a helpful Derelict 1473 | -10/Mines | Core integrity fell below 50% 1553 | -10/Mines | Discovered new exit (range 5) 1559 | -10/Mines | Entered Materials 1559 | -9/Materials | Evolved 2 slots: Utility x2 1809 | -9/Materials | Central database locked down 1886 | -9/Materials | Build established: Scavenger-Mutant 1969 | -9/Materials | Discovered new exit (range 11) 2053 | -9/Materials | Identified exit to Mines 2254 | -9/Materials | Discovered new exit (range 8) 2340 | -9/Materials | Discovered new exit (range 18) 2347 | -9/Materials | Core integrity fell below 50% 2570 | -9/Materials | Entered Mines 2583 | -9/Mines | Deemed a non-threat by the Exiles lab entrance 2583 | -9/Mines | Discovered new exit (range 5) 2589 | -9/Mines | Learned Materials garrison access intel 2671 | -9/Mines | Entered Exiles 2671 | -9/Exiles | Accompanied by 2 allies 2676 | -9/Exiles | Discovered new exit (range 15) 2681 | -9/Exiles | Met 8R-AWN 2687 | -9/Exiles | Met EX-HEX 2701 | -9/Exiles | Led the pair of lost Derelicts to a safe place 2728 | -9/Exiles | Met EX-BIN 2735 | -9/Exiles | Met EX-DEC 2736 | -9/Exiles | Build established: Mutant 2750 | -9/Exiles | Discovered new exit (range 10) 2753 | -9/Exiles | Entered Mines 2758 | -8/Mines | Discovered new exit (range 12) 2770 | -8/Mines | Entered Materials 2770 | -8/Materials | Evolved 2 slots: Propulsion x1, Utility x1 2771 | -8/Materials | Loaded intel: 1 garrison access location 3010 | -8/Materials | Discovered new exit (range 18) 3034 | -8/Materials | Entered Factory 3034 | -7/Factory | Evolved 2 slots: Propulsion x1, Utility x1 3129 | -7/Factory | Discovered new exit (range 4) 3316 | -7/Factory | Build established: Hacker-Sprinter 3334 | -7/Factory | Discovered new exit (range 14) 3338 | -7/Factory | Fabricated Adv. Weight Redist. System? 3423 | -7/Factory | Entered another Factory area 3423 | -6/Factory | Evolved 2 slots: Utility x2 3655 | -6/Factory | Discovered new exit (range 9) 3884 | -6/Factory | Lost 4 parts (1p3n) 4009 | -6/Factory | Fabricated Nuclear Pulse Thruster? 4252 | -6/Factory | Spotted B-75 Beast 4326 | -6/Factory | Fabricated Nuclear Pulse Thruster? 4473 | -6/Factory | Search patrols dispatched 4694 | -6/Factory | Identified exit to Lower Caves 4694 | -6/Factory | Identified exit to Extension 4695 | -6/Factory | Discovered new exit (range 22) 4698 | -6/Factory | Central database locked down 4705 | -6/Factory | Lost 3 parts (1n1u1w) 4712 | -6/Factory | Core integrity fell below 50% 4748 | -6/Factory | Lost 8 parts (1p3n2u2w) 4752 | -6/Factory | Core integrity fell below 20% 4784 | -6/Factory | Entered Extension 4817 | -6/Extension | Destroyed by Y-54 Guardian with Gatling Laser Last Messages --------------- 04760_ U-05 Engineer lays Concrete. 04767_ Door malfunctions. 04767_ Critical hit (Burn: +37). 04767_ U-05 Engineer lays Concrete. 04768_ U-05 Engineer builds a Wall. 04771_ P-60 Hacker resets G-50 Soldier, system corruption cleaned. LOCATION=EXTENSION GOAL=ESCAPE 04808_ W-25 Informer sends out distress signal. 04810_ Triggered Stasis Trap. 04810_ A bubble of rippling energy engulfs the area. 04810_ Field strength at 94. 04811_ Field strength at 88. 04812_ Field strength at 76. 04813_ Field strength at 70. 04814_ Field strength at 62. 04815_ Field strength at 56. 04816_ Field strength at 50. 04817_ Field strength at 44. 04817_ Hacking Suite destroyed. Map ----- +----------------------------------------------------+ | | | | | | | | | | | | | | | | | | | | | | | | | ??????????????????????????????????????????? | | ??????????????????????????????????????????? | | ????????????????????????#????????#????????? | | ??????????????????????? ########T#????????? | | ??????????????????????? + ?????????? | | ?????########????????? Y #??????????? | | ?????# #????????? #??????????? | | ?????# !#???????? #??????????? | | ?????# #???????? #??????????? | | ?????# ] [#??????? #??????????? | | ?????# ! |#??????? #??????????? | | ?????# *#?????? #??????????? | | ?????#+##+######### #??????????? | | ?????# @ u "???? | | ?????# ##????????????? | | ?????# #?????????????? | | ?????# #?????????????? | | ?????# #?????????????? | | ?????# #?????????????? | | ?????# w ^ #?????????????? | | ?????# ##################?????????????? | | ?????# #??????????????????????????????? | | ?????# #??????????????????????????????? | | ?????# #??????????????????????????????? | | ?????# #??????????????????????????????? | | ?????# #??????????????????????????????? | | ?????# #??????????????????????????????? | | ?????# #??????????????????????????????? | | ?????# #??????????????????????????????? | | ?????# #??????????????????????????????? | | ?????# #??????????????????????????????? | | ?????# #??????????????????????????????? | | ?????# #??????????????????????????????? | | ?????# #####??????????????????????????????? | | ?##### #####??????????????????????????????? | | ?# "" "" #??????????????????????????????? | | ?# " " ################???????????????? | | ?# ??????????????? | +----------------------------------------------------+ Best States ------------- Heat Dissipation 37 Energy Generation 25 Energy Capacity 290 Matter Stores 300 Matter Capacity 300 Sight Range 22 Robot Scan Range 15 Terrain Scan Range 16 Terrain Scan Density 85 ECM Strength 2 Additional Mass Support 9 Corruption Containment 8 Corruption Block 11 Armor Coverage 300 Evasion (%) 65 Offensive Hacking 30 Defensive Hacking 20 Authchip Count 2 Item Schematics ----------------- Imp. Flight Unit | -9/Materials | Scanalyzed Adv. Weight Redist. System | -8/Materials | Hacked Imp. Sensor Array | -8/Materials | Hacked ECM Suite | -7/Factory | Hacked Nuclear Pulse Thruster | -6/Factory | Hacked Imp. Signal Interpreter | -6/Factory | Hacked Adv. Signal Interpreter | -6/Factory | Hacked Robot Schematics ------------------ None Fabricated ------------ Adv. Weight Redist. System | x2 | -7/Factory Nuclear Pulse Thruster | x2 | -6/Factory Nuclear Pulse Thruster | x2 | -6/Factory Alien Tech Used ----------------- None Achievements -------------- None Challenges ------------ None Game ------ Seed ThrusterProcessingStreamer Manual? 0 Play Time 01:38:25 Cumulative 49.7 hours Start 2023.11.23 @ 13:40:11 End 2023.11.23 @ 15:24:07 Sessions 1 Manual Loads 0 Difficulty Rogue Special Mode None Game No. 48 Rogue 45 Adventurer 3 Explorer 0 Win Type - Total 0 Types 0/0/0/0/0/0/0/0/0 Lore% 50 Gallery% 48 Achievement% 40 Wizard Run 0 Options --------- ASCII 0 Keyboard 0 Movement Mouse Keybinds 0 Fullscreen 2 Font 18/SmallcapsGlow Map View 76x50 Tactical HUD 1 Map Filters NONE Filters NONE Steam 1 RUN: 05df0d8e-538f-4ad3-872e-c22e49646e01